Cogmind - Beta 11.1 --- EXPLORER MODE // 2022.05.06 @ 11:46:28 Player: Grimbling Result: Heading to fleet! Performance ------------- Evolutions (9) 4500 Regions Visited (21) 4200 Robots Destroyed (122) 610 Value Destroyed (4281) 4281 Prototype IDs (72) 1440 Alien Tech Used (6) 1200 Bonus (12275) 12275 TOTAL SCORE: 28506 Bonus ------- High Alert Combat Kills 22 Follower Combat Kills 1577 Network Hubs Disabled 400 Met Warlord at Base 500 MAIN.C Attacked Warlord 500 Built Enhanced Grunts 300 A7 Reached Mainframe 300 Used Core Reset Matrix 3000 Hacked Protovariant 500 Scanned by Researcher 500 Met Warlord at Command 2000 Win 3000 Friendly Fire -324 Cogmind --------- Core Integrity 1177/1600 Matter 280/300 Energy 106/135 System Corruption 1% Temperature Cool (12) Movement Hovering (55) Location To Fleet Rendezvous Parts ------- > --- POWER (4) -------- Compact Particle Reactor > --- PROPULSION (8) --- Gyrokinetic Inverter Antigrav Array Combat Linear Gravjet > --- UTILITY (12) ----- Experimental Optical Array 0b10 Decoder Chip [Looter] Advanced ECM Suite Light Regenerative Plating Improved Hacking Suite Advanced Hacking Suite > --- WEAPON (2) ------- (None) > --- INVENTORY (5) ---- Light Particle Reactor Antigrav Array Core Stripper Peak State ------------ > --- POWER ------------ Compact Particle Reactor Compact Particle Reactor Light Quantum Reactor Light Quantum Reactor > --- PROPULSION ------- Gyrokinetic Inverter Cooled Antigrav System Cooled Antigrav System Cooled Antigrav System Cooled Antigrav System Antigrav Array Combat Linear Gravjet > --- UTILITY ---------- Advanced Heat Sink Medium Storage Unit Experimental Optical Array Advanced Sensor Array Advanced Signal Interpreter 0b10 Decoder Chip [Looter] Quantum Capacitor Medium Regenerative Plating Improved Hacking Suite Advanced Hacking Suite System Shield > --- WEAPON ----------- Sigix Broadsword > --- INVENTORY -------- Light Particle Reactor Light Particle Reactor Compact Particle Reactor Gyrokinetic Inverter Improved Gyrokinetic Inverter Antigrav Array Light Regenerative Plating Core Stripper [Rating: 203] Favorites ----------- Power Compact Particle Reactor Engine Improved Deuterium Engine Power Core Neutrino Core Reactor Compact Particle Reactor Propulsion Cooled Antigrav System Leg Aluminum Leg Hover Unit Cooled Antigrav System Flight Unit Improved VTOL Module Utility Medium Storage Unit Device Advanced ECM Suite Storage Medium Storage Unit Processor Experimental Optical Array Hackware Advanced Hacking Suite Protection Layered Light Armor Plating Artifact Phase Redirector Weapon Power Maul Energy Gun Advanced Variable Charge Gun Ballistic Gun Light Assault Rifle Impact Weapon Power Maul Slashing Weapon Greatsword Build | -11 -10 -9 -8 -7 -6 -5 -5 -5 -5 -5 -4 -4 -4 -4 -3 -3 -3 -2 -2 -1 -1 ------- Run | Scr Mat Mat Mat Fac Fac Fac Ext Cet Arc Hub Fac Upp Upp War Pro Res Tes Res Qua Acc Com Slots Evolved 19 | . 1 2 2 2 2 2 . . . . 2 . . . . 2 . 2 . 2 . Power 3 | . . . 1 . . 1 . . . . . . . . . . . 1 . . . Propulsion 6 | . . 2 . 1 . 1 . . . . 1 . . . . . . . . 1 . Utility 10 | . 1 . 1 1 2 . . . . . 1 . . . . 2 . 1 . 1 . Weapon . | . . . . . . . . . . . . . . . . . . . . . . Parts Attached 216 | 7 1 19 17 14 16 5 7 4 1 6 14 1 5 3 1 24 19 8 23 7 14 Power 38 | 1 . . 5 3 1 3 2 1 . 2 3 . 2 . . 4 5 2 3 . 1 Engine 15 | 1 . . 3 1 . 1 2 1 . 1 2 . 1 . . 1 . 1 . . . Core 12 | . . . 2 2 . 2 . . . 1 . . 1 . . 2 1 1 . . . Reactor 11 | . . . . . 1 . . . . . 1 . . . . 1 4 . 3 . 1 Propulsion 77 | 2 . 18 7 2 10 1 1 . . 2 5 . 2 . 1 7 4 2 5 3 5 Treads . | . . . . . . . . . . . . . . . . . . . . . . Leg 2 | 2 . . . . . . . . . . . . . . . . . . . . . Wheel . | . . . . . . . . . . . . . . . . . . . . . . Hover 61 | . . 10 4 . 9 1 1 . . 2 5 . 2 . 1 7 4 2 5 3 5 Flight 14 | . . 8 3 2 1 . . . . . . . . . . . . . . . . Utility 79 | 2 1 . 3 7 5 . 4 1 . 2 6 1 . 1 . 9 10 3 12 4 8 Device 49 | . . . 2 5 4 . 4 . . 1 3 . . 1 . 4 5 1 10 2 7 Storage 1 | 1 . . . . . . . . . . . . . . . . . . . . . Processor 14 | 1 . . 1 . 1 . . . . . 2 . . . . 4 3 1 1 . . Hackware 8 | . . . . 2 . . . . . 1 . 1 . . . 1 1 1 . 1 . Protection 6 | . 1 . . . . . . 1 . . 1 . . . . . 1 . . 1 1 Artifact 1 | . . . . . . . . . . . . . . . . . . . 1 . . Weapon 22 | 2 . 1 2 2 . 1 . 2 1 . . . 1 2 . 4 . 1 3 . . Energy Gun 1 | . . . . . . . . 1 . . . . . . . . . . . . . Energy Cannon . | . . . . . . . . . . . . . . . . . . . . . . Ballistic Gun 2 | 2 . . . . . . . . . . . . . . . . . . . . . Ballistic Cannon . | . . . . . . . . . . . . . . . . . . . . . . Launcher . | . . . . . . . . . . . . . . . . . . . . . . Special Weapon . | . . . . . . . . . . . . . . . . . . . . . . Impact Weapon 9 | . . . . . . . . . 1 . . . 1 2 . 4 . . 1 . . Slashing Weapon 10 | . . 1 2 2 . 1 . 1 . . . . . . . . . 1 2 . . Piercing Weapon . | . . . . . . . . . . . . . . . . . . . . . . Special Melee Weapon . | . . . . . . . . . . . . . . . . . . . . . . Unidentified Prototypes 28 | . . 2 . . 2 . . 2 . . 1 . . . . 4 8 2 6 . 1 Parts Lost 49 | . . 1 6 2 . . 1 3 . 4 3 . 4 . 1 5 1 . 1 1 16 Power 8 | . . . . 1 . . . . . . 1 . 2 . . 1 . . . . 3 Propulsion 18 | . . 1 5 . . . 1 . . 3 1 . 1 . . 1 . . . . 5 Utility 20 | . . . . 1 . . . 2 . 1 1 . 1 . 1 3 1 . 1 1 7 Weapon 3 | . . . 1 . . . . 1 . . . . . . . . . . . . 1 Highest Loss Streak 16 | . . 1 4 1 . . 1 3 . 3 3 . 2 . 1 2 1 . 1 1 16 To Critical Strikes 3 | . . . . . . . . 2 . . . . . . . . 1 . . . . Average Slot Usage (%) 89 | . 100 95 88 95 96 90 93 88 88 84 79 80 84 88 86 83 97 90 90 90 89 Engine 5 | . 12 10 9 2 6 8 5 10 11 8 5 5 1 5 5 2 . 2 . . . Core 4 | . . . 5 10 2 2 10 5 5 6 8 5 8 5 5 4 2 . . . . Reactor 5 | . . . . . 3 2 . . . . . 5 5 5 5 3 10 12 15 15 14 Leg 1 | . 25 2 . . . . . . . . . . . . . . . . . . . Hover 24 | . . 24 29 2 20 30 32 33 33 27 24 20 24 25 25 26 31 25 25 25 24 Flight 2 | . . 9 2 32 9 . . . . . . . . . . . . . . . . Device 14 | . . . 7 15 22 22 25 17 16 16 16 17 15 18 16 14 8 8 10 12 14 Storage 5 | . 12 10 8 7 6 5 5 5 5 5 5 5 5 5 5 4 4 4 4 3 3 Processor 8 | . 12 10 12 7 12 11 6 5 5 3 1 5 5 5 5 10 15 12 12 11 11 Hackware 5 | . . . . 3 . . . . . 3 5 7 5 5 5 6 12 14 12 12 10 Protection 3 | . 12 10 3 . . . . 3 5 5 7 5 5 5 5 . 1 4 4 3 3 Ballistic Gun 2 | . 25 18 . . . . . . . . . . . . . . . . . . . Impact Weapon 3 | . . . . . . . . . 3 5 5 5 9 9 10 8 9 1 . . . Slashing Weapon 2 | . . 1 7 12 12 6 5 5 1 . . . . . . . . 3 3 3 2 Naked Turns . | . . . . . . . . . . . . . . . . . . . . . . Heaviest Build 90 | 15 16 17 29 33 42 42 45 49 50 54 61 61 60 59 59 57 70 80 89 90 88 Greatest Support 107 | 20 20 32 32 34 53 51 52 52 52 58 72 62 73 62 62 92 75 90 95 107 107 Greatest Overweight (x) 3 | 3 . 3 1 . 1 . 1 . . 1 . . . . 1 1 . 1 1 . 1 Average Overweight (x) . | . . . . . . . . . . . . . . . . . . . . . . Largest Inventory Capacity 10 | 10 10 10 10 10 10 10 10 10 10 10 10 10 10 10 10 10 10 10 10 10 10 Average Capacity 9 | 9 10 10 10 10 10 10 10 10 10 10 10 10 10 10 10 10 10 10 10 10 9 Most Carried 10 | 7 9 10 10 10 10 10 10 10 10 10 10 10 10 8 9 10 10 10 10 10 10 Average Carried 8 | 2 6 8 9 7 8 8 9 9 10 8 9 9 7 6 8 9 9 8 9 9 9 Final Capacity 10 | 10 10 10 10 10 10 10 10 10 10 10 10 10 10 10 10 10 10 10 10 10 5 Final Carried 10 | 4 9 10 9 10 8 10 9 10 10 7 9 10 5 8 9 9 10 9 10 10 5 Class Distribution -------------------- 44% | Hacker-Mutant 17% | Hacker-Sprinter 11% | Scavenger-Sprinter 9% | Hacker-Ninja 6% | Wizard-Mutant 3% | Wizard-Ninja 3% | Scavenger-Mutant 3% | Wizard-Sprinter Dominant Class ---------------- Hacker-Mutant | -10/Materials Hacker-Mutant | -9/Materials Scavenger-Mutant | -8/Materials Hacker-Sprinter | -7/Factory Hacker-Mutant | -6/Factory Hacker-Sprinter | -5/Factory Scavenger-Sprinter | -5/Extension Scavenger-Sprinter | -5/Cetus Scavenger-Sprinter | -5/Archives Hacker-Mutant | -5/Hub_04(d) Hacker-Mutant | -4/Factory Hacker-Mutant | -4/Upper Caves Hacker-Mutant | -4/Upper Caves Hacker-Mutant | -4/Warlord Hacker-Mutant | -3/Proximity Caves Hacker-Ninja | -3/Research Wizard-Ninja | -3/Testing Wizard-Mutant | -2/Research Hacker-Sprinter | -2/Quarantine Hacker-Ninja | -1/Access Hacker-Ninja | -1/Command Resources | -11 -10 -9 -8 -7 -6 -5 -5 -5 -5 -5 -4 -4 -4 -4 -3 -3 -3 -2 -2 -1 -1 ----------- Run | Scr Mat Mat Mat Fac Fac Fac Ext Cet Arc Hub Fac Upp Upp War Pro Res Tes Res Qua Acc Com Matter Collected 2385 | 200 146 244 110 180 160 40 80 35 10 45 120 30 42 33 5 233 204 88 220 100 60 Remotely . | . . . . . . . . . . . . . . . . . . . . . . Salvage Created 5932 | . 376 211 526 273 611 88 688 67 69 223 341 418 59 . . 697 371 263 418 233 . Parts 238 | . 24 14 34 17 30 7 25 3 4 4 5 1 5 . . 17 7 10 14 17 . Haulers Intercepted 15 | . 2 1 1 1 2 . . . . 2 2 . . . . 3 . . 1 . . Recyclers Shooed 2 | . . . . . 1 . . . . 1 . . . . . . . . . . . Parts Field Recycled . | . . . . . . . . . . . . . . . . . . . . . . Retrieved Matter . | . . . . . . . . . . . . . . . . . . . . . . Parts Self-Destructed . | . . . . . . . . . . . . . . . . . . . . . . Prevented . | . . . . . . . . . . . . . . . . . . . . . . Kills | -11 -10 -9 -8 -7 -6 -5 -5 -5 -5 -5 -4 -4 -4 -4 -3 -3 -3 -2 -2 -1 -1 ------- Run | Scr Mat Mat Mat Fac Fac Fac Ext Cet Arc Hub Fac Upp Upp War Pro Res Tes Res Qua Acc Com Combat Hostiles Destroyed 49 | . 4 2 8 3 4 2 10 1 . . 2 . 3 . . 5 3 . . 2 . Melee 32 | . . 1 8 3 4 2 10 1 . . . . 1 . . . . . . 2 . Guns 5 | . 4 1 . . . . . . . . . . . . . . . . . . . AOE 5 | . . . . . . . . . . . 1 . . . . 4 . . . . . Classes Destroyed 17 | . 6 2 2 1 . . 2 . . . . 1 . . . 1 2 . . . . Worker 5 | . . . 1 . 1 . . . . . . . . . . . . 2 1 . . Builder 1 | . 1 . . . . . . . . . . . . . . . . . . . . Tunneler 1 | . . . . 1 . . . . . . . . . . . . . . . . . Hauler 15 | . 2 1 1 1 2 . . . . 2 2 . . . . 3 . . 1 . . Recycler 6 | . 1 . 1 . 1 . 1 . . . . . . . . . . 1 1 . . Minesweeper 1 | . . . . . . . . . . . . 1 . . . . . . . . . Mechanic 2 | . . 1 . . . . . . . . . . . . . . 1 . . . . Operator 18 | . . . 2 2 2 2 . . 2 1 1 . . . . . 3 2 . 1 . Drone 2 | . . . . . . . . . . . . . . . . . 1 . . 1 . Watcher 23 | . 3 2 2 2 1 . 1 . . . 1 . . . . 5 2 1 . 3 . Swarmer 16 | . 2 . 2 2 2 2 3 . . . . . 3 . . . . . . . . Grunt 16 | . 2 1 4 . 1 . 4 . . . 1 . . . . 3 . . . . . Duelist 1 | . . . . . . . 1 . . . . . . . . . . . . . . Researcher 3 | . . . . . . . . . . . . . . . . . 1 . 2 . . Sentry 7 | . . 1 2 1 1 . 1 . . . 1 . . . . . . . . . . Hunter 4 | . . . . . . . 1 . . . . . . . . 1 2 . . . . Programmer 2 | . . . . . . . . . . . . . . . . 1 . . . 1 . Cetus Guard 1 | . . . . . . . . 1 . . . . . . . . . . . . . Best Kill Streak 4 | . 3 3 3 3 3 3 4 1 1 1 3 1 3 . . 4 3 3 1 2 . Combat Bots Only 4 | . 2 1 3 2 2 2 4 1 . . 1 . 3 . . 3 2 . . 1 . Max Kills in Single Turn 2 | . 1 1 1 1 1 1 1 1 1 1 2 1 1 . . 2 1 1 1 1 . Gunslinging . | . . . . . . . . . . . . . . . . . . . . . . Exploded 2 | . . . . . . . . . . . 1 . . . . 2 . . . . . Melee 1 | . . 1 1 1 1 1 1 1 . . . . 1 . . . . . . 1 . Uniques/NPCs Destroyed . | . . . . . . . . . . . . . . . . . . . . . . Combat | -11 -10 -9 -8 -7 -6 -5 -5 -5 -5 -5 -4 -4 -4 -4 -3 -3 -3 -2 -2 -1 -1 -------- Run | Scr Mat Mat Mat Fac Fac Fac Ext Cet Arc Hub Fac Upp Upp War Pro Res Tes Res Qua Acc Com Damage Taken 8379 | . 89 28 709 110 114 45 413 222 . 802 475 . 349 90 131 432 443 249 297 860 2521 Core 1280 | . 17 6 161 28 28 11 28 30 . 115 93 . 43 40 54 96 74 33 . 67 356 Absorbed by Shields 373 | . . . . . . . 93 38 . . . . . . . . 19 . . . 223 Redirected to Shielding 46 | . 7 3 36 . . . . . . . . . . . . . . . . . . Regen/Repaired (Parts) 1255 | . . . . . . . . . . . . . . . . . 33 59 91 382 690 Core Remaining (%) 86 | 100 93 98 70 96 96 . . . . 81 . . . . 80 . 86 . 80 . 73 Volleys Fired 55 | . 41 14 . . . . . . . . . . . . . . . . . . . Largest 2 | . 2 2 . . . . . . . . . . . . . . . . . . . Hottest 40 | . 40 40 . . . . . . . . . . . . . . . . . . . Shots Fired 110 | . 82 28 . . . . . . . . . . . . . . . . . . . Gun 110 | . 82 28 . . . . . . . . . . . . . . . . . . . Cannon . | . . . . . . . . . . . . . . . . . . . . . . Launcher . | . . . . . . . . . . . . . . . . . . . . . . Special . | . . . . . . . . . . . . . . . . . . . . . . Kinetic 110 | . 82 28 . . . . . . . . . . . . . . . . . . . Thermal . | . . . . . . . . . . . . . . . . . . . . . . Explosive . | . . . . . . . . . . . . . . . . . . . . . . Electromagnetic . | . . . . . . . . . . . . . . . . . . . . . . Robot Hit Streak 47 | . 47 11 . . . . . . . . . . . . . . . . . . . Robot Miss Streak 2 | . 1 2 . . . . . . . . . . . . . . . . . . . Penetration Max . | . . . . . . . . . . . . . . . . . . . . . . Secondary Targets . | . . . . . . . . . . . . . . . . . . . . . . Shots Hit Robots 321 | . 74 25 32 22 24 7 27 7 2 8 14 8 6 . . 21 11 11 15 7 . Core Hits 123 | . 26 11 14 9 13 3 10 2 1 1 4 1 1 . . 13 1 4 5 4 . Critical Kills 3 | . . . . . . . . . . 1 . . . . . 2 . . . . . Critical Parts Destroyed 16 | . . . . . . . . . . 2 4 1 1 . . 2 5 1 . . . Critical Strikes 32 | . . . 3 3 2 1 1 1 . 3 4 1 1 . . 4 5 1 2 . . Smash 19 | . . . . . . . . . . 3 4 1 1 . . 4 5 1 . . . Sever 13 | . . . 3 3 2 1 1 1 . . . . . . . . . . 2 . . Melee Attacks 440 | . . 3 44 23 34 10 34 8 5 13 14 29 11 3 2 33 46 24 32 59 13 Impact 156 | . . . . . . . . . 4 13 14 29 11 3 2 33 46 1 . . . Slashing 284 | . . 3 44 23 34 10 34 8 1 . . . . . . . . 23 32 59 13 Piercing . | . . . . . . . . . . . . . . . . . . . . . . Sneak Attacks 46 | . . . 4 3 4 . 2 . 2 4 1 1 . . . 4 2 8 8 3 . Combat Hostiles 6 | . . . . . . . 1 . . . . . . . . 1 . 2 1 1 . Follow-up Attacks 7 | . . . . . 2 . . . . . . . . . . 4 1 . . . . Damage Inflicted 17101 | . 605 365 1816 999 1193 496 1673 291 228 630 875 690 264 . . 1911 953 1402 1767 943 . Guns 775 | . 605 170 . . . . . . . . . . . . . . . . . . . Cannons . | . . . . . . . . . . . . . . . . . . . . . . Explosions 1062 | . . 114 . . . . . . . . 280 . . . . 532 136 . . . . Melee 15264 | . . 81 1816 999 1193 496 1673 291 228 630 595 690 264 . . 1379 817 1402 1767 943 . Ramming . | . . . . . . . . . . . . . . . . . . . . . . Kinetic 775 | . 605 170 . . . . . . . . . . . . . . . . . . . Thermal 394 | . . 114 . . . . . . . . 280 . . . . . . . . . . Explosive 668 | . . . . . . . . . . . . . . . . 532 136 . . . . Electromagnetic . | . . . . . . . . . . . . . . . . . . . . . . Impact 4568 | . . . . . . . . . 132 630 595 690 264 . . 1379 817 61 . . . Slashing 10696 | . . 81 1816 999 1193 496 1673 291 96 . . . . . . . . 1341 1767 943 . Piercing . | . . . . . . . . . . . . . . . . . . . . . . Highest Corruption 7 | . . . . . . . . . . 7 . . . . . 4 4 . . 1 1 Average Corruption 3 | . . . . . . . . . . 5 . . . . . 2 4 . . 1 1 Corruption Purged . | . . . . . . . . . . . . . . . . . . . . . . Corruption Blocked 17 | . . . . . . . . . . . . . . . . . 15 2 . . . Effects 24 | . . . . . . . . . . 3 . . . . . 9 11 . . . 1 Message Errors 4 | . . . . . . . . . . 1 . . . . . 2 1 . . . . Matter Fused 6 | . . . . . . . . . . 1 . . . . . 2 3 . . . . Heat Flow Errors 3 | . . . . . . . . . . . . . . . . 3 . . . . . Energy Discharges 2 | . . . . . . . . . . . . . . . . . 2 . . . . Data Loss (minor) 6 | . . . . . . . . . . . . . . . . . 5 . . . 1 Data Loss (major) 2 | . . . . . . . . . . . . . . . . 2 . . . . . Alerts 1 | . . . . . . . . . . 1 . . . . . . . . . . . Overload Shots . | . . . . . . . . . . . . . . . . . . . . . . Overflow Damage 3622 | . . . 178 148 73 109 124 . 87 157 160 570 74 . . 346 613 347 269 367 . Projectiles 95 | . . . . . . . . . . . . 95 . . . . . . . . . Explosions 12 | . . . . . . . . . . . . . . . . 12 . . . . . Melee 3515 | . . . 178 148 73 109 124 . 87 157 160 475 74 . . 334 613 347 269 367 . Knockbacks 14 | . . . . . . . . . . 1 . 1 . . . 7 5 . . . . Impact 14 | . . . . . . . . . . 1 . 1 . . . 7 5 . . . . Kinetic . | . . . . . . . . . . . . . . . . . . . . . . Secondary . | . . . . . . . . . . . . . . . . . . . . . . Self-Inflicted Damage 29 | . . . . . . . . . . . . . . . . 29 . . . . . Shots 1 | . . . . . . . . . . . . . . . . 1 . . . . . Rammed . | . . . . . . . . . . . . . . . . . . . . . . Targets Rammed . | . . . . . . . . . . . . . . . . . . . . . . Kicked . | . . . . . . . . . . . . . . . . . . . . . . Crushed . | . . . . . . . . . . . . . . . . . . . . . . Highest Temperature 289 | . 18 12 27 3 . . . . . . 23 6 289 . . 195 . 73 . 3 50 Average Temperature 46 | . 10 4 7 1 . . . . . . 5 6 107 . . 69 . 37 . 3 21 Received Heat Transfer 1797 | . 72 18 558 42 45 . 115 44 . 138 165 . 30 12 . 99 . 72 99 9 279 Effects 1 | . . . . . . . . . . . . . 1 . . . . . . . . Interference 1 | . . . . . . . . . . . . . 1 . . . . . . . . Siege Activations . | . . . . . . . . . . . . . . . . . . . . . . Robots Corrupted . | . . . . . . . . . . . . . . . . . . . . . . Combat Hostiles . | . . . . . . . . . . . . . . . . . . . . . . Parts Fried 38 | . . . . . . . 1 . 1 3 5 2 1 . . 9 12 4 . . . Impact Corruptions 73 | . . . . . . . . . 4 3 8 20 3 . . 14 20 1 . . . Robots Melted . | . . . . . . . . . . . . . . . . . . . . . . Combat Hostiles . | . . . . . . . . . . . . . . . . . . . . . . Parts Melted 1 | . . . . . . . 1 . . . . . . . . . . . . . . Heat Transferred 200 | . . 50 . . . . . . . . 150 . . . . . . . . . . Parts Sabotaged 1 | . . . . . . . . . . . 1 . . . . . . . . . . Parts Stolen . | . . . . . . . . . . . . . . . . . . . . . . Parts Stripped . | . . . . . . . . . . . . . . . . . . . . . . Power Chain Reactions . | . . . . . . . . . . . . . . . . . . . . . . Missiles Intercepted . | . . . . . . . . . . . . . . . . . . . . . . Alert | -11 -10 -9 -8 -7 -6 -5 -5 -5 -5 -5 -4 -4 -4 -4 -3 -3 -3 -2 -2 -1 -1 ------- Run | Scr Mat Mat Mat Fac Fac Fac Ext Cet Arc Hub Fac Upp Upp War Pro Res Tes Res Qua Acc Com Peak Influence 885 | . 160 141 235 236 373 135 504 484 287 614 487 . . . . 480 513 451 513 739 885 Initial 295 | . . . 42 10 84 43 48 211 135 68 220 . . . . . 63 162 85 144 295 Average 213 | . 91 21 108 102 184 70 164 277 242 364 261 . . . . 205 320 266 256 314 557 Maximum Alert Level 3 | . . . 1 1 1 . 2 2 1 2 2 . . . . 2 2 2 2 3 3 Low Security (%) 49 | 100 100 100 78 77 50 100 63 4 25 25 1 . . . . 57 25 30 30 25 . Level 1 36 | . . . 21 22 49 . 33 77 74 14 91 . . . . 16 48 59 48 50 33 Level 2 12 | . . . . . . . 3 18 . 59 7 . . . . 26 26 10 21 22 33 Level 3 1 | . . . . . . . . . . . . . . . . . . . . 1 33 Level 4 . | . . . . . . . . . . . . . . . . . . . . . . Level 5 . | . . . . . . . . . . . . . . . . . . . . . . High Security . | . . . . . . . . . . . . . . . . . . . . . . Max Security . | . . . . . . . . . . . . . . . . . . . . . . Squads Dispatched 43 | . . . 5 2 5 4 1 . . 5 4 . . . . 1 3 3 5 3 2 Investigation 13 | . . . 2 1 2 2 1 . . 1 . . . . . . . . 1 1 2 Extermination 2 | . . . . . . . . . . . 1 . . . . . . . 1 . . Reinforcement 26 | . . . 3 1 3 2 . . . 4 2 . . . . 1 2 3 3 2 . Assault 2 | . . . . . . . . . . . 1 . . . . . 1 . . . . Garrison . | . . . . . . . . . . . . . . . . . . . . . . Intercept . | . . . . . . . . . . . . . . . . . . . . . . Searches Triggered 4 | . . . . . . . . . . . . . . . . 1 1 . . 2 . Construction Impeded 1 | . . . . . . . . . . 1 . . . . . . . . . . . Haulers Reinforced 3 | . . . . . 1 . . . . . . . . . . . . 1 1 . . Active Scanning Responses . | . . . . . . . . . . . . . . . . . . . . . . Cargo Convoy Interrupts . | . . . . . . . . . . . . . . . . . . . . . . Stealth | -11 -10 -9 -8 -7 -6 -5 -5 -5 -5 -5 -4 -4 -4 -4 -3 -3 -3 -2 -2 -1 -1 --------- Run | Scr Mat Mat Mat Fac Fac Fac Ext Cet Arc Hub Fac Upp Upp War Pro Res Tes Res Qua Acc Com Distress Signals 26 | . 1 1 2 . . . 2 1 . 1 . . . . . 1 . 12 4 . 1 Communications Jammed 51 | . . . . . . . 7 44 . . . . . . . . . . . . . Distress Signals 51 | . . . . . . . 7 44 . . . . . . . . . . . . . Times Spotted 418 | . 8 9 26 7 16 9 28 11 2 26 13 . 9 17 10 30 25 11 50 61 50 Peak Tracking Total 19 | . 3 3 13 4 4 3 6 5 2 17 9 . 4 14 5 7 5 4 8 11 19 Tactical Retreats 71 | . . . 2 2 3 3 1 1 . 3 2 . 3 1 3 7 9 2 8 12 9 Traps | -11 -10 -9 -8 -7 -6 -5 -5 -5 -5 -5 -4 -4 -4 -4 -3 -3 -3 -2 -2 -1 -1 ------- Run | Scr Mat Mat Mat Fac Fac Fac Ext Cet Arc Hub Fac Upp Upp War Pro Res Tes Res Qua Acc Com Traps Triggered 18 | . 1 . 1 . 3 1 1 . . 1 . . . . . . 3 . . 1 6 Indirectly . | . . . . . . . . . . . . . . . . . . . . . . Trap Hack Attempts . | . . . . . . . . . . . . . . . . . . . . . . Triggered . | . . . . . . . . . . . . . . . . . . . . . . Disarmed 13 | . . . . . . . 12 . . . . . . . . . . . . 1 . Reprogrammed 28 | . . . . . . . 6 . . 9 . . . . . 6 . . . 5 2 Reused 8 | . . . . . . . . . . 4 . . . . . 3 . . . . 1 Traps Extracted . | . . . . . . . . . . . . . . . . . . . . . . Installed . | . . . . . . . . . . . . . . . . . . . . . . Triggered 17 | . . . . . . . . . . 4 . . . 9 . 3 . . . . 1 Machines | -11 -10 -9 -8 -7 -6 -5 -5 -5 -5 -5 -4 -4 -4 -4 -3 -3 -3 -2 -2 -1 -1 ---------- Run | Scr Mat Mat Mat Fac Fac Fac Ext Cet Arc Hub Fac Upp Upp War Pro Res Tes Res Qua Acc Com Machines Disabled 36 | . . 2 . . . . 2 4 4 2 4 . . . . 5 7 1 5 . . Max in Single Turn 4 | . . 2 . . . . 1 1 1 . 4 . . . . 2 2 1 1 . . Garrison Access 8 | . . . . 2 . . . . . 1 1 . . . . . 1 1 1 1 . Network Hub 2 | . . . . . . . . . . 2 . . . . . . . . . . . Machines Sabotaged . | . . . . . . . . . . . . . . . . . . . . . . Garrisons Compromised . | . . . . . . . . . . . . . . . . . . . . . . Overloaded Fab Kills . | . . . . . . . . . . . . . . . . . . . . . . Hacking | -11 -10 -9 -8 -7 -6 -5 -5 -5 -5 -5 -4 -4 -4 -4 -3 -3 -3 -2 -2 -1 -1 --------- Run | Scr Mat Mat Mat Fac Fac Fac Ext Cet Arc Hub Fac Upp Upp War Pro Res Tes Res Qua Acc Com Machines Accessed 91 | . 2 3 5 4 5 4 12 2 . 6 3 . . 5 . 6 10 1 7 9 7 Terminals 65 | . 2 2 4 1 5 3 12 2 . 5 2 . . . . 4 7 . 5 6 5 Fabricators 5 | . . . . 1 . 1 . . . . 1 . . . . 1 1 . . . . Repair Stations 3 | . . 1 . . . . . . . . . . . . . . 1 . . . 1 Recycling Units 3 | . . . 1 . . . . . . . . . . . . . . . . 1 1 Scanalyzers 3 | . . . . . . . . . . . . . . . . 1 . . 1 1 . Garrison Access 7 | . . . . 2 . . . . . 1 . . . . . . 1 1 1 1 . Total Hacks 348 | . 7 12 17 7 19 9 30 7 . 20 12 . . 10 . 31 44 2 33 57 31 Successful 242 | . 4 9 13 5 14 7 24 5 . 10 9 . . 10 . 18 27 1 23 41 22 Failed 106 | . 3 3 4 2 5 2 6 2 . 10 3 . . . . 13 17 1 10 16 9 Catastrophic 9 | . . . . 1 1 . . 1 . . . . . . . 1 3 . . 1 1 Database Lockouts . | . . . . . . . . . . . . . . . . . . . . . . Manual 155 | . 3 5 10 4 8 5 12 1 3 11 5 . . . . 19 17 . 17 21 14 Terminals 304 | . 7 11 15 4 19 8 30 7 . 19 11 . . . . 27 37 . 31 51 27 Fabricators 8 | . . . . 1 . 1 . . . . 1 . . . . 1 4 . . . . Repair Stations 6 | . . 1 . . . . . . . . . . . . . . 2 . . . 3 Recycling Units 7 | . . . 2 . . . . . . . . . . . . . . . . 4 1 Scanalyzers 5 | . . . . . . . . . . . . . . . . 3 . . 1 1 . Garrison Access 8 | . . . . 2 . . . . . 1 . . . . . . 1 2 1 1 . Terminal Hacks 154 | . 3 5 7 1 9 4 15 5 . 5 5 . . 10 . 9 15 . 17 33 11 Record 15 | . . 1 . . . . . 4 . . . . . 8 . . . . 2 . . Part Schematic 3 | . . . . . . . . . . . . . . . . . 3 . . . . Robot Analysis 3 | . . . . . 1 . . . . 1 . . . . . . 1 . . . . Prototype ID Bank 15 | . 1 1 2 1 3 . 1 . . . . . . . . 1 1 . 1 2 1 Open Door 13 | . . . . . . 1 5 1 . . . . . 2 . . 1 . . 3 . Level Access Points 7 | . . . 1 . 1 . . . . . . . . . . 1 . . 2 1 1 Branch Access Points 9 | . . . 1 . 1 1 . . . . . . . . . 1 2 . 1 2 . Emergency Access Points 7 | . . . . . 1 . . . . . . . . . . . 1 . 1 2 2 Machine Index 7 | . . . . . 1 . 1 . . . . . . . . 1 . . 2 1 1 Terminal Index 2 | . . . . . . . . . . . . . . . . . 1 . . . 1 Fabricator Index 1 | . . . . . . . . . . . . . . . . . . . . 1 . Scanalyzer Index 1 | . . . . . . . . . . . . . . . . . . . 1 . . Garrison Index 1 | . . . . . . . . . . . . . . . . . . . . 1 . Unreport Threat 20 | . . 2 2 . . 2 . . . . 3 . . . . 3 . . 4 4 . Locate Traps 6 | . 1 . 1 . . . 1 . . . . . . . . . . . 1 2 . Disarm Traps 4 | . . . . . . . 3 . . . . . . . . . . . . 1 . Reprogram Traps 13 | . . . . . . . 2 . . 3 . . . . . 2 . . . 3 3 Security Status 1 | . . . . . . . . . . . . . . . . . . . . 1 . Surveillance Status 1 | . . . . . . . . . . . . . . . . . . . . 1 . Investigation Status 1 | . . . . . . . . . . . . . . . . . . . . 1 . Extermination Status 1 | . . . . . . . . . . . . . . . . . . . 1 . . Reinforcement Status 1 | . . . . . . . . . . . . . . . . . . . . 1 . Recall Investigation 3 | . . . . . . . . . . . . . . . . . 1 . . 2 . Recall Extermination 2 | . . . . . . . . . . . . . . . . . 1 . . 1 . Recall Reinforcements 4 | . . . . . . . . . . 1 . . . . . . . . 1 2 . Registered Components 1 | . 1 . . . . . . . . . . . . . . . . . . . . Registered Prototypes 1 | . . . . . . . . . . . . . . . . . . . . . 1 Zone Layout 8 | . . 1 . . 1 . 2 . . . 2 . . . . . 1 . . 1 . Protovariant Controls 2 | . . . . . . . . . . . . . . . . . 2 . . . . Disengage Seal 1 | . . . . . . . . . . . . . . . . . . . . . 1 Fabricator Hacks . | . . . . . . . . . . . . . . . . . . . . . . Repair Station Hacks 5 | . . . . . . . . . . . . . . . . . 2 . . . 3 Scan Component 3 | . . . . . . . . . . . . . . . . . 1 . . . 2 Repair 2 | . . . . . . . . . . . . . . . . . 1 . . . 1 Recycling Unit Hacks 4 | . . . 1 . . . . . . . . . . . . . . . . 2 1 Retrieve Components 4 | . . . 1 . . . . . . . . . . . . . . . . 2 1 Scanalyzer . | . . . . . . . . . . . . . . . . . . . . . . Garrison Access Hacks 7 | . . . . 2 . . . . . 1 . . . . . . 1 1 1 1 . Seal Access 7 | . . . . 2 . . . . . 1 . . . . . . 1 1 1 1 . Unauthorized Hacks 72 | . 1 4 5 2 5 3 9 . . 4 4 . . . . 9 9 . 5 5 7 Terminals 61 | . 1 3 4 1 5 2 9 . . 4 3 . . . . 7 8 . 4 3 7 Assimilate 4 | . . . . . . 1 2 . . . . . . . . . 1 . . . . Botnet 43 | . 1 2 4 1 5 1 6 . . 2 2 . . . . 4 4 . 4 3 4 Detonate 11 | . . 1 . . . . 1 . . 2 1 . . . . 3 2 . . . 1 Disrupt 1 | . . . . . . . . . . . . . . . . . . . . . 1 Operators 2 | . . . . . . . . . . . . . . . . . 1 . . . 1 Fabricators 5 | . . . . 1 . 1 . . . . 1 . . . . 1 1 . . . . Fabnet 5 | . . . . 1 . 1 . . . . 1 . . . . 1 1 . . . . Repair Stations 1 | . . 1 . . . . . . . . . . . . . . . . . . . Mechanics 1 | . . 1 . . . . . . . . . . . . . . . . . . . Recycling Units 2 | . . . 1 . . . . . . . . . . . . . . . . 1 . Recyclers 2 | . . . 1 . . . . . . . . . . . . . . . . 1 . Scanalyzers 3 | . . . . . . . . . . . . . . . . 1 . . 1 1 . Researchers 2 | . . . . . . . . . . . . . . . . 1 . . 1 . . Extract 1 | . . . . . . . . . . . . . . . . . . . . 1 . Garrison Access . | . . . . . . . . . . . . . . . . . . . . . . Data Cores Recovered 3 | . . . . 1 1 . . . . . . . . . . . 1 . . . . Used 2 | . . . . 1 1 . . . . . . . . . . . . . . . . Hacking Detections 54 | . 2 3 4 1 5 2 9 1 . 5 1 . . . . 6 4 . 3 4 4 Full Trace Events 9 | . . . 2 1 2 2 1 . . . . . . . . . . . 1 . . Feedback Events . | . . . . . . . . . . . . . . . . . . . . . . Feedback Blocked . | . . . . . . . . . . . . . . . . . . . . . . Robot Schematics Acquired 2 | . . . . . . . . . . . . . . . . . 2 . . . . Robots Built . | . . . . . . . . . . . . . . . . . . . . . . Authchips . | . . . . . . . . . . . . . . . . . . . . . . Time . | . . . . . . . . . . . . . . . . . . . . . . Total Robot Build Rating . | . . . . . . . . . . . . . . . . . . . . . . Part Schematics Acquired 18 | . . . . . . . . . . . . . . . . . 7 . 9 2 . Parts Built . | . . . . . . . . . . . . . . . . . . . . . . Authchips . | . . . . . . . . . . . . . . . . . . . . . . Time . | . . . . . . . . . . . . . . . . . . . . . . Total Part Build Rating . | . . . . . . . . . . . . . . . . . . . . . . Parts Repaired 2 | . . . . . . . . . . . . . . . . . 1 . . . 1 Time 58 | . . . . . . . . . . . . . . . . . 22 . . . 36 Parts Recycled . | . . . . . . . . . . . . . . . . . . . . . . Recycled Matter . | . . . . . . . . . . . . . . . . . . . . . . Retrieved Matter . | . . . . . . . . . . . . . . . . . . . . . . Retrieved Components 5 | . . . 2 . . . . . . . . . . . . . . . . 1 2 Parts Scanalyzed . | . . . . . . . . . . . . . . . . . . . . . . Part Schematics Acquired . | . . . . . . . . . . . . . . . . . . . . . . Parts Damaged . | . . . . . . . . . . . . . . . . . . . . . . Bothacking | -11 -10 -9 -8 -7 -6 -5 -5 -5 -5 -5 -4 -4 -4 -4 -3 -3 -3 -2 -2 -1 -1 ------------ Run | Scr Mat Mat Mat Fac Fac Fac Ext Cet Arc Hub Fac Upp Upp War Pro Res Tes Res Qua Acc Com Used RIF Installer . | . . . . . . . . . . . . . . . . . . . . . . Robots Hacked 11 | . . . . . . . 2 . . . . . . 2 . 2 . 3 1 1 . Non-combat . | . . . . . . . . . . . . . . . . . . . . . . Combat 11 | . . . . . . . 2 . . . . . . 2 . 2 . 3 1 1 . Robot Hacks Applied . | . . . . . . . . . . . . . . . . . . . . . . Relay Couplers Released 4 | . . . . . . . . . . 2 2 . . . . . . . . . . Machine Destruction 4 | . . . . . . . . . . 2 2 . . . . . . . . . . Fabnet Peak Effective % 7 | . . . . . 3 1 1 1 1 1 3 3 3 3 4 4 4 7 7 2 2 Autooverrided 11 | . . . . . . . 2 . . . . . . 2 . 2 . 3 1 1 . Robots Rewired 5 | . . . . . . . . . . . . . . 5 . . . . . . . Allies Hacked . | . . . . . . . . . . . . . . . . . . . . . . Hacks Repelled . | . . . . . . . . . . . . . . . . . . . . . . Allies | -11 -10 -9 -8 -7 -6 -5 -5 -5 -5 -5 -4 -4 -4 -4 -3 -3 -3 -2 -2 -1 -1 -------- Run | Scr Mat Mat Mat Fac Fac Fac Ext Cet Arc Hub Fac Upp Upp War Pro Res Tes Res Qua Acc Com Total Allies 31 | . . . . . . . 12 5 . . . . . 7 . 2 . 3 1 1 . Largest Group 7 | . . . . . . . 5 7 7 5 . . . 6 . 1 . 1 1 1 . Highest-Rated Group 658 | . . . . . . . 244 658 658 473 . . . 318 . 64 . 148 58 30 . Highest-Rated Ally 159 | . . . . . . . 159 159 159 96 . . . 68 . 64 . 148 58 30 . Total Orders . | . . . . . . . . . . . . . . . . . . . . . . Ally Attacks 261 | . . . . . . . 90 47 53 46 . . . 4 . 2 . 11 3 5 . Total Damage 7952 | . . . . . . . 1609 1340 2289 1909 . . . 121 . 57 . 399 135 93 . Kills 41 | . . . . . . . 11 11 4 11 . . . 1 . . . 2 1 . . Allies Corrupted . | . . . . . . . . . . . . . . . . . . . . . . Allies Melted 1 | . . . . . . . . . . . . . . . . . . 1 . . . Intel | -11 -10 -9 -8 -7 -6 -5 -5 -5 -5 -5 -4 -4 -4 -4 -3 -3 -3 -2 -2 -1 -1 ------- Run | Scr Mat Mat Mat Fac Fac Fac Ext Cet Arc Hub Fac Upp Upp War Pro Res Tes Res Qua Acc Com Robot Analysis Total 3 | . . . . . 1 . . . . 1 . . . . . . 1 . . . . Derelict Logs Recovered 3 | . . . . . . . . . . . . 2 1 . . . . . . . . Drone Launches . | . . . . . . . . . . . . . . . . . . . . . . Drone Recoveries . | . . . . . . . . . . . . . . . . . . . . . . Decoded 0b10 Intel 160 | . . . . . . . . . . . . . . . . 20 28 25 40 31 16 Items 160 | . . . . . . . . . . . . . . . . 20 28 25 40 31 16 Exploration | -11 -10 -9 -8 -7 -6 -5 -5 -5 -5 -5 -4 -4 -4 -4 -3 -3 -3 -2 -2 -1 -1 ------------- Run | Scr Mat Mat Mat Fac Fac Fac Ext Cet Arc Hub Fac Upp Upp War Pro Res Tes Res Qua Acc Com Turns Passed 9397 | 148 530 256 525 336 454 249 784 318 140 235 374 624 301 522 581 548 577 463 683 502 247 Spaces Moved 13796 | 116 348 382 640 558 934 547 725 276 190 420 581 1104 426 971 553 759 1056 914 952 946 398 Core 18 | 18 . . . . . . . . . . . . . . . . . . . . . Treads . | . . . . . . . . . . . . . . . . . . . . . . Legs 446 | 98 348 . . . . . . . . . . . . . . . . . . . . Wheels . | . . . . . . . . . . . . . . . . . . . . . . Hover 12189 | . . 209 538 . 624 547 725 276 190 420 581 1104 426 971 553 759 1056 914 952 946 398 Flight 1143 | . . 173 102 558 310 . . . . . . . . . . . . . . . . Fastest Speed 24 | 50 120 27 29 24 24 31 31 31 31 31 38 50 48 50 50 37 33 35 33 27 31 Average Speed 42 | 114 120 42 48 25 31 31 31 31 31 38 42 50 49 50 50 53 33 40 34 30 32 Slowest Speed 245 | 200 120 245 112 29 101 34 86 31 31 90 50 50 50 50 105 101 42 89 98 31 93 Overloaded Moves . | . . . . . . . . . . . . . . . . . . . . . . Propulsion Burnouts . | . . . . . . . . . . . . . . . . . . . . . . Robots Hopped 4 | . . . 4 . . . . . . . . . . . . . . . . . . Cave-ins Triggered . | . . . . . . . . . . . . . . . . . . . . . . Teleports 3 | . . . . . . . . . . . . . . . . . . . 3 . . Exploration Rate (%) 49 | 5 55 24 47 18 25 14 77 73 95 61 15 95 69 97 76 23 85 29 55 28 19 Regions Visited 21 Branch Regions 11 Pre-discovered Areas 3 | . . . . . . . . . . . . . 1 2 . . . . . . . Known Exits Taken 21 | 1 1 1 1 1 1 1 1 1 1 1 1 1 1 1 1 1 1 1 1 1 . Unknown Exits Taken . | . . . . . . . . . . . . . . . . . . . . . . Scrap Searched 9 | . . . . . . . . . . . . 4 2 . 3 . . . . . . Spaces Dug 168 | . . . 5 . 5 3 6 . . 3 . 21 2 2 1 6 26 12 12 51 13 Terrain Destroyed 369 | . . 27 5 . 5 3 6 . . 3 24 21 2 2 1 93 89 12 12 51 13 Melee 168 | . . . 5 . 5 3 6 . . 3 . 21 2 2 1 6 26 12 12 51 13 Projectile . | . . . . . . . . . . . . . . . . . . . . . . AOE 201 | . . 27 . . . . . . . . 24 . . . . 87 63 . . . . Terrain Rammed . | . . . . . . . . . . . . . . . . . . . . . . Walls Destroyed . | . . . . . . . . . . . . . . . . . . . . . . Machines Disabled . | . . . . . . . . . . . . . . . . . . . . . . Actions | -11 -10 -9 -8 -7 -6 -5 -5 -5 -5 -5 -4 -4 -4 -4 -3 -3 -3 -2 -2 -1 -1 --------- Run | Scr Mat Mat Mat Fac Fac Fac Ext Cet Arc Hub Fac Upp Upp War Pro Res Tes Res Qua Acc Com Total 16503 | 129 395 453 761 717 1040 601 1229 497 263 476 687 1134 498 1004 852 849 1193 959 1242 1036 488 Wait 1707 | . . . 48 92 39 32 456 206 67 19 65 . 57 6 296 18 40 1 205 19 41 Move 13767 | 115 347 381 632 557 933 546 724 275 189 419 580 1103 425 970 552 758 1055 913 951 945 397 Hop 3 | . . . 3 . . . . . . . . . . . . . . . . . . Pick Up 74 | 7 6 6 4 18 . 3 1 1 . 1 5 . . 4 1 6 3 2 3 1 2 Fast Attach 132 | 4 . 11 6 3 13 2 4 3 1 2 10 1 1 3 1 11 14 4 21 5 12 Attach 70 | 3 1 9 8 9 3 2 1 1 . 3 3 . 4 . . 10 2 4 3 2 2 Detach 66 | . . 16 6 4 3 2 1 2 . 2 2 1 . 2 . 7 6 6 4 2 . Swap 19 | . . . 3 2 . 1 2 . . 1 1 . . . . 3 3 . 3 . . Drop 125 | . . 13 7 10 7 3 6 1 1 3 7 . . 3 . 10 13 5 19 3 14 Fire 55 | . 41 14 . . . . . . . . . . . . . . . . . . . Melee 421 | . . 3 44 22 29 10 34 8 5 13 14 29 11 2 2 26 41 24 32 59 13 Ram . | . . . . . . . . . . . . . . . . . . . . . . Kick . | . . . . . . . . . . . . . . . . . . . . . . Crush . | . . . . . . . . . . . . . . . . . . . . . . Escape Stasis 50 | . . . . . 13 . . . . 13 . . . . . . 16 . 1 . 7 Rewire 14 | . . . . . . . . . . . . . . 14 . . . . . . . Trap . | . . . . . . . . . . . . . . . . . . . . . . Miscellaneous . | . . . . . . . . . . . . . . . . . . . . . . Route ------- -11/Scrapyard -10/Materials (discovered 2 exits: *Mat / *Min) -9/Materials -8/Materials (discovered 3 exits: *Fac x3) -7/Factory (discovered 2 exits: *Fac / *Low) -6/Factory (discovered 6 exits: *Fac x4 / Low x2) -5/Factory (discovered 4 exits: *Upp x2 / *Ext x2) -5/Extension (discovered 2 exits: *Fac / *Cet) -5/Cetus -5/Archives (discovered 3 exits: *Fac / *Hub x2) -5/Hub_04(d) -4/Factory -4/Upper Caves -4/Upper Caves (discovered 2 exits: *Res / *War) -4/Warlord -3/Proximity Caves -3/Research (discovered 5 exits: Res x3 / *Tes x2) -3/Testing -2/Research -2/Quarantine -1/Access (discovered 2 exits: Sur / *Com) -1/Command (discovered 2 exits: *Sur x2) To Fleet Rendezvous History --------- Turn | Location | Event 24 | -11/Scrapyard | Identified exit to Materials 24 | -11/Scrapyard | Discovered exit to Materials (range 15) 149 | -11/Scrapyard | Entered Materials 149 | -10/Materials | Evolved 1 slot: Utility x1 303 | -10/Materials | Build established: Hacker-Mutant 324 | -10/Materials | Identified exit to Mines 324 | -10/Materials | Discovered exit to Mines (range 12) 661 | -10/Materials | Identified exit to Materials 661 | -10/Materials | Discovered exit to Materials (range 16) 679 | -10/Materials | Entered another Materials area 679 | -9/Materials | Evolved 2 slots: Propulsion x2 933 | -9/Materials | Identified exit to Materials 933 | -9/Materials | Discovered exit to Materials (range 4) 935 | -9/Materials | Entered another Materials area 935 | -8/Materials | Evolved 2 slots: Power x1, Utility x1 1232 | -8/Materials | Identified exit to Factory 1448 | -8/Materials | Lost 4 parts (3n1w) 1460 | -8/Materials | Entered Factory 1460 | -7/Factory | Evolved 2 slots: Propulsion x1, Utility x1 1564 | -7/Factory | Identified exit to Lower Caves 1564 | -7/Factory | Discovered exit to Lower Caves (range 12) 1705 | -7/Factory | Identified exit to Factory 1705 | -7/Factory | Discovered exit to Factory (range 14) 1722 | -7/Factory | Build established: Hacker-Sprinter 1796 | -7/Factory | Entered another Factory area 1796 | -6/Factory | Evolved 2 slots: Utility x2 1848 | -6/Factory | Identified exit to Lower Caves 2076 | -6/Factory | Spotted B-75 Beast 2177 | -6/Factory | Identified exit to Factory 2236 | -6/Factory | Build established: Hacker-Mutant 2250 | -6/Factory | Entered another Factory area 2250 | -5/Factory | Evolved 2 slots: Power x1, Propulsion x1 2437 | -5/Factory | Identified exit to Upper Caves 2437 | -5/Factory | Identified exit to Extension 2499 | -5/Factory | Entered Extension 2620 | -5/Extension | Rescued a captive Derelict 2660 | -5/Extension | Build established: Hacker-Sprinter 2666 | -5/Extension | Rescued a captive Derelict 2666 | -5/Extension | Rescued a captive Derelict 2765 | -5/Extension | Spotted B-75 Beast 3021 | -5/Extension | Spotted B-75 Beast 3033 | -5/Extension | Build established: Scavenger-Sprinter 3043 | -5/Extension | Rescued a captive Derelict 3044 | -5/Extension | Rescued a captive Derelict 3135 | -5/Extension | Rescued a captive Derelict 3137 | -5/Extension | Rescued a captive Derelict 3204 | -5/Extension | Rescued A7 3245 | -5/Extension | Identified exit to Factory 3245 | -5/Extension | Discovered exit to Factory (range 10) 3246 | -5/Extension | Identified exit to Cetus 3246 | -5/Extension | Discovered exit to Cetus (range 6) 3253 | -5/Extension | Disrupted transfer network 3283 | -5/Extension | Entered Cetus 3283 | -5/Cetus | Accompanied by 4 allies (A7) 3288 | -5/Cetus | Acquired a Cetus Manufacturing Module code from A7 3300 | -5/Cetus | Spotted Cetus Guard 3300 | -5/Cetus | Spotted Cetus Guard 3301 | -5/Cetus | Spotted Cetus Guard 3309 | -5/Cetus | Spotted Cetus Guard 3312 | -5/Cetus | Allies destroyed Cetus Guard 3321 | -5/Cetus | Destroyed Cetus Guard 3327 | -5/Cetus | Allies destroyed Cetus Guard 3331 | -5/Cetus | Allies destroyed Cetus Guard 3362 | -5/Cetus | Lost 3 parts (2u1w) 3364 | -5/Cetus | Started Cetus Manufacturing Module 3389 | -5/Cetus | Manufactured an Enhanced Grunt 3414 | -5/Cetus | Manufactured an Enhanced Grunt 3439 | -5/Cetus | Manufactured an Enhanced Grunt 3464 | -5/Cetus | Manufactured an Enhanced Grunt 3489 | -5/Cetus | Manufactured an Enhanced Grunt 3531 | -5/Cetus | Escorted A7 to Cetus Mainframe 3559 | -5/Cetus | Identified exit to Archives 3559 | -5/Cetus | Discovered exit to Archives (range 16) 3601 | -5/Cetus | Entered Archives 3601 | -5/Archives | Accompanied by 7 allies (A7) 3606 | -5/Archives | Received a hacking code to weaken MAIN.C 3637 | -5/Archives | Unable to access archive contents 3662 | -5/Archives | Unable to access archive contents 3665 | -5/Archives | Identified exit to Hub_04(d) 3665 | -5/Archives | Discovered exit to Hub_04(d) (range 16) 3682 | -5/Archives | Discovered exit to Factory (range 16) 3699 | -5/Archives | Unable to access archive contents 3703 | -5/Archives | Discovered exit to Hub_04(d) (range 14) 3741 | -5/Archives | Entered Hub_04(d) 3741 | -5/Hub_04(d) | Accompanied by 5 allies 3844 | -5/Hub_04(d) | Spotted B-75 Beast 3891 | -5/Hub_04(d) | Network Hub disabled 3910 | -5/Hub_04(d) | Spotted Lightning 3912 | -5/Hub_04(d) | Spotted Lightning 3912 | -5/Hub_04(d) | Spotted Lightning 3912 | -5/Hub_04(d) | Spotted Lightning 3918 | -5/Hub_04(d) | Network Hub disabled 3949 | -5/Hub_04(d) | Discovered exit to Factory (range 16) 3951 | -5/Hub_04(d) | Lost 3 parts (2n1u) 3975 | -5/Hub_04(d) | Spotted Lightning 3975 | -5/Hub_04(d) | Spotted Lightning 3976 | -5/Hub_04(d) | Entered Factory 3976 | -4/Factory | Evolved 2 slots: Propulsion x1, Utility x1 4200 | -4/Factory | Build established: Hacker-Mutant 4305 | -4/Factory | Spotted B-86 Titan 4335 | -4/Factory | Identified exit to Upper Caves 4335 | -4/Factory | Discovered exit to Upper Caves (range 6) 4347 | -4/Factory | Lost 3 parts (1p1n1u) 4350 | -4/Factory | Entered Upper Caves 4438 | -4/Upper Caves | Learned Research emergency access door positions 4567 | -4/Upper Caves | Identified exit to Upper Caves 4567 | -4/Upper Caves | Discovered exit to Upper Caves (range 8) 4736 | -4/Upper Caves | Encountered a Warlord checkpoint 4974 | -4/Upper Caves | Entered another Upper Caves area 4989 | -4/Upper Caves | Identified exit to Research 4989 | -4/Upper Caves | Discovered exit to Research (range 13) 5270 | -4/Upper Caves | Identified exit to Warlord 5270 | -4/Upper Caves | Discovered exit to Warlord (range 9) 5275 | -4/Upper Caves | Entered Warlord 5307 | -4/Warlord | Identified exit to Proximity Caves 5307 | -4/Warlord | Discovered exit to Proximity Caves (range 8) 5523 | -4/Warlord | Learned Factory scanalyzer intel 5523 | -4/Warlord | Learned Armory repair station intel 5523 | -4/Warlord | Learned Research terminal intel 5524 | -4/Warlord | Learned location of Testing (-3) 5524 | -4/Warlord | Learned location of Command (-1) 5524 | -4/Warlord | Learned Armory emergency access door positions 5596 | -4/Warlord | Warlord's base attacked by MAIN.C 5693 | -4/Warlord | Met Warlord 5760 | -4/Warlord | Opened side exit 5797 | -4/Warlord | Entered Proximity Caves 5881 | -3/Proximity Caves | Spotted B-86 Titan 5957 | -3/Proximity Caves | Discovered exit to Research (range 17) 6217 | -3/Proximity Caves | Received a Behemoth hack from an annoying Tinkerer 6378 | -3/Proximity Caves | Entered Research 6378 | -3/Research | Evolved 2 slots: Utility x2 6379 | -3/Research | Identified exit to Testing 6381 | -3/Research | Loaded intel: 24 terminal locations 6521 | -3/Research | Found Prototype Processor 6521 | -3/Research | Identified Exp. Signal Interpreter 6569 | -3/Research | Spotted B-86 Titan 6628 | -3/Research | Search patrols dispatched 6666 | -3/Research | Identified exit to Research 6895 | -3/Research | Build established: Hacker-Ninja 6912 | -3/Research | Spotted B-86 Titan 6926 | -3/Research | Entered Testing 6932 | -3/Testing | Spotted Alpha 7 6933 | -3/Testing | Spotted 4A-9A1(K) 6933 | -3/Testing | Spotted WY-PJF(K) 6933 | -3/Testing | Spotted D9-GZ2(K) 6979 | -3/Testing | Protovariant out of control (PD-U6SYORULWB) 6979 | -3/Testing | Unleashed a protovariant (PD-U6SYORULWB) 6982 | -3/Testing | Spotted PD-U6SYORULWB 7043 | -3/Testing | Found Prototype Hackware 7043 | -3/Testing | Identified Ghost Barrier 7101 | -3/Testing | Found Prototype Device 7101 | -3/Testing | Identified Exp. Hardlight Generator 7198 | -3/Testing | Found Prototype Processor 7198 | -3/Testing | Identified Exp. Melee Analysis Suite 7262 | -3/Testing | Repaired Adv. ECM Suite 7333 | -3/Testing | Discovered exit to Research (range 3) 7356 | -3/Testing | Found Prototype Protection 7356 | -3/Testing | Identified Med. Regenerative Plating 7362 | -3/Testing | Found Lgt. Regenerative Plating 7426 | -3/Testing | Search patrols dispatched 7503 | -3/Testing | Entered Research 7503 | -2/Research | Warlord forces began assault on 0b10 7503 | -2/Research | Evolved 2 slots: Power x1, Utility x1 7566 | -2/Research | Found Prototype Processor 7566 | -2/Research | Identified Exp. Targeting Computer 7590 | -2/Research | Found Prototype Slashing Weapon 7590 | -2/Research | Identified Centrium Greatsword 7593 | -2/Research | Found Centrium Greatsword 7613 | -2/Research | Research machine network offline 7798 | -2/Research | Build established: Wizard-Mutant 7809 | -2/Research | Identified exit to Quarantine 7809 | -2/Research | Discovered exit to Quarantine (range 20) 7809 | -2/Research | Spotted B-90 Cyclops 7845 | -2/Research | Borebot progress halted 7966 | -2/Research | Entered Quarantine 7970 | -2/Quarantine | Found Alien Artifact 7970 | -2/Quarantine | Identified Hpw. Transdimensional Reconstructor 7970 | -2/Quarantine | Warped through subspace 8004 | -2/Quarantine | Identified exit to Access 8029 | -2/Quarantine | Found Hpw. Transdimensional Reconstructor 8031 | -2/Quarantine | Found Alien Artifact 8031 | -2/Quarantine | Identified Transdimensional Reconstructor 8031 | -2/Quarantine | Warped through subspace 8131 | -2/Quarantine | Found Alien Artifact 8131 | -2/Quarantine | Identified Phase Redirector 8335 | -2/Quarantine | Found Alien Impact Weapon 8335 | -2/Quarantine | Identified Core Stripper 8359 | -2/Quarantine | Found Alien Slashing Weapon 8359 | -2/Quarantine | Identified Sigix Broadsword 8403 | -2/Quarantine | Found Alien Artifact 8403 | -2/Quarantine | Identified Core Reset Matrix 8403 | -2/Quarantine | Used Core Reset Matrix 8407 | -2/Quarantine | Detected hypermatrix surge 8407 | -2/Quarantine | Sensed 7 artifacts in vicinity 8408 | -2/Quarantine | Discovered exit to Access (range 23) 8455 | -2/Quarantine | Build established: Hacker-Sprinter 8474 | -2/Quarantine | Local machine network offline 8515 | -2/Quarantine | Scanned by Researcher 8518 | -2/Quarantine | Warped through subspace 8649 | -2/Quarantine | Entered Access 8649 | -1/Access | Evolved 2 slots: Propulsion x1, Utility x1 8773 | -1/Access | Identified exit to Surface 8773 | -1/Access | Identified exit to Command 8899 | -1/Access | Search patrols dispatched 8900 | -1/Access | Spotted B-99 Colossus 8923 | -1/Access | Spotted B-99 Colossus 9149 | -1/Access | Search patrols dispatched 9151 | -1/Access | Entered Command 9184 | -1/Command | Found Unknown Device 9184 | -1/Command | Identified Quantum Capacitor 9242 | -1/Command | Build established: Hacker-Ninja 9271 | -1/Command | Disengaged cave seal 9304 | -1/Command | Welcomed Warlord to Command 9313 | -1/Command | Repaired Cld. Antigrav System 9327 | -1/Command | Spotted Alpha 7 9327 | -1/Command | Spotted Striker 9327 | -1/Command | Spotted Executioner 9377 | -1/Command | Spotted Alpha 7 9377 | -1/Command | Spotted Striker 9377 | -1/Command | Spotted Executioner 9377 | -1/Command | Spotted Executioner 9378 | -1/Command | Spotted Executioner 9379 | -1/Command | Spotted B-99 Colossus 9380 | -1/Command | Spotted B-99 Colossus 9398 | *** | Heading to fleet! Last Messages --------------- 09391_ Penetrated by Slug. 09391_ Slug penetrates Wall. 09392_ Critical hit (Impale). 09392_ Stasis field depleted. 09392_ Penetrated by Slug. 09393_ Adv. Sensor Array destroyed. 09394_ Cld. Antigrav System destroyed. 09394_ Slug penetrates B-99 Colossus. 09394_ Slug penetrates Wall. 09394_ Penetrated by Slug. 09394_ Slug penetrates Wall. 09395_ Med. Storage Unit destroyed. 09395_ The Access Shell folds into the floor. 09396_ Adv. Signal Interpreter destroyed. 09396_ Penetrated by Slug. 09396_ Lgt. Quantum Reactor destroyed. 09396_ Slug penetrates Wall. 09397_ System corrupted: Component data lost. 09397_ Cld. Antigrav System destroyed. 09398_ Slug penetrates B-99 Colossus. Map ----- +----------------------------------------------------+ | ?????????####"##"##"### # ""Y"" #???????????? | | ????????????#########?# # = #???????????? | | ??????????????????????# # == #???????????? | | ??????????????????????# # #???????????? | | ????????????###########h " #???????????? | | ??????????# w # #???????????? | | ??????????# ###########k # #???????????? | | ??????????????????????# ###########???????????? | | ?????????????????????##//E/##????????????????????? | | ?????????????????????#% ^^ #????????????????????? | | ???????????????????### ^^ %##???????????????????? | | ???????????????????#" ^ g^ #???????????????????? | | ???????????????????### % ##???????????????????? | | ????????????????????# ^ #???????????????????? | | ????????????????????##^ g^7 ;#???????????????????? | | ????????????????????# %%g E #???????????????????? | | ????????????????????#; % KEg##???????????????????? | | ???????????????????## EBB*^ #???????????????????? | | ??????????????????##;;^ BB ;###?????????????????? | | ??????????????????# BB % #?????????????????? | | ??????????????????# BB #?????????????????? | | ??????????????????# K #?????????????????? | | ??????????????????# ^ #?????????????????? | | ??????????????????# #?????????????????? | | ??????????????????# "" #?????????????????? | | ??????????????????# "@ #?????????????????? | | ??????????????????# ^ #?????????????????? | | ??????????????????# #?????????????????? | | ??????????????????# ^ #?????????????????? | | ??????????????????# #?????????????????? | | ??????????????????# #?????????????????? | | ??????????????????##############?????????????????? | | ?????????????????????????????????????????????????? | | ?????????????????????????????????????????????????? | | ?????????????????????????????????????????????????? | | ?????????????????????????????????????????????????? | | ?????????????????????????????????????????????????? | | ?????????????????????????????????????????????????? | | ?????????????????????????????????????????????????? | | ?????????????????????????????????????????????????? | | ?????????????????????????????????????????????????? | | ?????????????????????????????????????????????????? | | ?????????????????????????????????????????????????? | | ?????????????????????????????????????????????????? | | ?????????????????????????????????????????????????? | | ?????????????????????????????????????????????????? | | ?????????????????????????????????????????????????? | | ?????????????????????????????????????????????????? | | ?????????????????????????????????????????????????? | | ?????????????????????????????????????????????????? | +----------------------------------------------------+ Best States ------------- Heat Dissipation 71 Coolant Potential 100 Energy Generation 81 Energy Capacity 630 Matter Stores 300 Matter Capacity 300 Sight Range 23 Robot Scan Range 16 Terrain Scan Range 20 Terrain Scan Density 10 ECM Strength 4 Jamming Range 12 Additional Mass Support 9 Base Temperature (-) 200 Armor Coverage 375 Resistance: KI 35 Resistance: TH 35 Resistance: EX 35 Resistance: EM 35 Resistance: I 35 Resistance: S 35 Resistance: P 35 Propulsion Shielding 33 Melee Speed Boost 20 Evasion (%) 67 Targeting Accuracy 5 Melee Accuracy 12 Target Analysis 8 Offensive Hacking 56 Defensive Hacking 30 Item Schematics ----------------- Recoil Nullifier | -1/Access | Extracted Hcp. Storage Unit | -1/Access | Extracted Robot Schematics ------------------ None Fabricated ------------ Nothing Alien Tech Used ----------------- High-powered Transdimensional Reconstructor Transdimensional Reconstructor Phase Redirector Core Stripper Sigix Broadsword Core Reset Matrix Achievements -------------- Main Advantage Challenges ------------ None Game ------ Seed MinesnifferSingularityBrace Manual? 0 Play Time 03:20:51 Cumulative 116.0 hours Start 2022.05.05 @ 15:36:24 End 2022.05.06 @ 11:46:28 Sessions 3 Manual Loads 0 Difficulty Explorer Special Mode None Game No. 31 Rogue 0 Adventurer 1 Explorer 30 Win Type 2 Total 9 Types 5/0/2/2/0/0/0/0/0 Lore% 66 Gallery% 72 Achievement% 58 Wizard Run 0 Options --------- ASCII 0 Keyboard 1 Movement Numpad Keybinds 0 Fullscreen 0 Font 14/X11 Map View 76x50 Tactical HUD 1 Map Filters NONE Filters NONE Steam 1 RUN: 7de195b0-7555-4936-bbc2-31e319476194